[Event "Skalica Rapid 2020"]
[Site "Skalica"]
[Date "2020.08.29"]
[Round "4.13"]
[White "Majoros, Rozsa Evelin"]
[Black "Sarmir Milos"]
[Result "1-0"]
[ECO "C97"]
[WhiteElo "1936"]
[BlackElo "2059"]
[Annotator "ChessBase"]
[PlyCount "73"]
[EventDate "2020.08.29"]
[EventType "swiss"]
[EventCountry "SVK"]
[SourceTitle "playchess.com"]
[Source "ChessBase"]
[SourceQuality "1"]
[TimeControl "600+5"]

1. e4 {[%emt 0:00:00]} e5 {[%emt 0:00:00]} 2. Nf3 {[%emt 0:00:00]} Nc6 {[%emt 0:00:00]} 3. Bb5 {[%emt 0:00:00]} a6 {[%emt 0:00:00]} 4. Ba4 {[%emt 0:00:01]} Nf6 {[%emt 0:00:00]} 5. O-O {[%emt 0:00:02]} Be7 {[%emt 0:00:02]} 6. Re1 {[%emt 0:00:05]} b5 {[%emt 0:00:01]} 7. Bb3 {[%emt 0:00:01]} d6 {[%emt 0:00:01]} 8. c3 {[%emt 0:00:00]} O-O {[%emt 0:00:03]} 9. h3 {[%emt 0:00:02]} Na5 {[%emt 0:00:01]} 10. Bc2 {[%emt 0:00:00]} c5 {[%emt 0:00:01]} 11. d4 {[%emt 0:00:00]} Qc7 {[%emt 0:00:01]} 12. Nbd2 {[%emt 0:00:06]} Bd7 {[%emt 0:00:04]} 13. Nf1 {[%emt 0:00:07]} Rfc8 {[%emt 0:00:05]} 14. d5 {[%emt 0:00:03]} c4 {[%emt 0:00:07]} 15. Ng3 {[%emt 0:00:07]} Nb7 {[%emt 0:00:03]} 16. Nh2 {[%emt 0:00:12]} Nc5 {[%emt 0:00:02]} 17. Qf3 {[%emt 0:00:03]} Rf8 {[%emt 0:00:13]} 18. Ng4 {[%emt 0:00:19]} Nxg4 {[%emt 0:00:04]} 19. hxg4 {[%emt 0:00:02]} a5 {[%emt 0:00:04]} 20. Nf5 {[%emt 0:00:05]} Bxf5 {[%emt 0:00:08]} 21. gxf5 {[%emt 0:00:02]} b4 {[%emt 0:00:07]} 22. g4 {[%emt 0:00:15]} b3 {[%emt 0:00:06]} 23. Bb1 {[%emt 0:00:17]} bxa2 {[%emt 0:00:10]} 24. Rxa2 {[%emt 0:00:04]} Nb3 {[%emt 0:00:13]} 25. Be3 {[%emt 0:00:08]} Qd8 {[%emt 0:00:05]} 26. Kg2 {[%emt 0:00:19]} Bg5 {[%emt 0:00:02]} 27. Rh1 {[%emt 0:00:46]} Nd2 {[%emt 0:00:37]} 28. Qh3 {[%emt 0:01:03]} h6 {[%emt 0:00:02]} 29. Bc2 {[%emt 0:00:53]} Nb3 {[%emt 0:00:42]} 30. Ra4 {[%emt 0:01:04]} Bxe3 {[%emt 0:00:15]} 31. Qxe3 {[%emt 0:00:11]} Rc8 {[%emt 0:00:56]} 32. Rh5 {[%emt 0:00:32]} Rc5 {[%emt 0:00:44]} 33. g5 {[%emt 0:00:16]} g6 {[%emt 0:00:20]} 34. Rxh6 {[%emt 0:00:17]} gxf5 {[%emt 0:00:20]} 35. exf5 {[%emt 0:00:10]} Rxd5 {[%emt 0:00:55]} 36. f6 {[%emt 0:00:09]} Qd7 {[%emt 0:00:10]} 37. Qe4 {[%emt 0:00:19]} 1-0

[Event "Skalica Rapid 2020"]
[Site "Skalica"]
[Date "2020.08.29"]
[Round "4.14"]
[White "Grieve, Harry"]
[Black "Jablonicky, Frantisek"]
[Result "1-0"]
[ECO "B12"]
[WhiteElo "1887"]
[BlackElo "2038"]
[Annotator "ChessBase"]
[PlyCount "39"]
[EventDate "2020.08.29"]
[EventType "swiss"]
[EventCountry "SVK"]
[SourceTitle "playchess.com"]
[Source "ChessBase"]
[SourceQuality "1"]
[TimeControl "600+5"]

1. e4 {[%emt 0:00:00]} c6 {[%emt 0:01:16]} 2. d4 {[%emt 0:00:00]} d5 {[%emt 0:00:05]} 3. e5 {[%emt 0:00:03]} Bf5 {[%emt 0:00:00]} 4. h4 {[%emt 0:00:02]} h5 {[%emt 0:00:00]} 5. Bd3 {[%emt 0:00:01]} Bxd3 {[%emt 0:00:03]} 6. Qxd3 {[%emt 0:00:01]} Qa5+ {[%emt 0:00:01]} 7. Nd2 {[%emt 0:00:02]} Qa6 {[%emt 0:00:00]} 8. e6 {[%emt 0:00:02]} Qxd3 {[%emt 0:00:06]} 9. exf7+ {[%emt 0:00:02]} Kxf7 {[%emt 0:00:02]} 10. cxd3 {[%emt 0:00:01]} g6 {[%emt 0:02:27]} 11. Ndf3 {[%emt 0:00:19]} Bh6 {[%emt 0:00:53]} 12. Ne5+ {[%emt 0:00:09]} Kg7 {[%emt 0:00:05]} 13. Rh3 {[%emt 0:00:18]} Bxc1 {[%emt 0:00:10]} 14. Rxc1 {[%emt 0:00:06]} Nf6 {[%emt 0:00:01]} 15. Rg3 {[%emt 0:00:16]} Rh6 {[%emt 0:00:02]} 16. Nh3 {[%emt 0:00:30]} Nbd7 {[%emt 0:00:12]} 17. Nf4 {[%emt 0:00:16]} Nxe5 {[%emt 0:00:17]} 18. dxe5 {[%emt 0:00:02]} Ng4 {[%emt 0:01:00]} 19. d4 {[%emt 0:00:10]} Rf8 {[%emt 0:00:01]} 20. Ne6+ {[%emt 0:00:01]} 1-0

[Event "Skalica Rapid 2020"]
[Site "Skalica"]
[Date "2020.08.29"]
[Round "4.15"]
[White "Szucs Vladimir"]
[Black "Krupa Miroslav"]
[Result "0-1"]
[ECO "D36"]
[WhiteElo "2088"]
[BlackElo "1816"]
[Annotator "ChessBase"]
[PlyCount "46"]
[EventDate "2020.08.29"]
[EventType "swiss"]
[EventCountry "SVK"]
[SourceTitle "playchess.com"]
[Source "ChessBase"]
[SourceQuality "1"]
[TimeControl "600+5"]

1. d4 {[%emt 0:00:00]} Nf6 {[%emt 0:00:00]} 2. c4 {[%emt 0:00:00]} e6 {[%emt 0:00:00]} 3. Nc3 {[%emt 0:00:00]} d5 {[%emt 0:00:01]} 4. cxd5 {[%emt 0:00:02]} exd5 {[%emt 0:00:01]} 5. Bg5 {[%emt 0:00:02]} Be7 {[%emt 0:00:06]} 6. e3 {[%emt 0:00:05]} Nbd7 {[%emt 0:00:03]} 7. Bd3 {[%emt 0:00:00]} O-O {[%emt 0:00:03]} 8. Nf3 {[%emt 0:00:01]} c6 {[%emt 0:00:02]} 9. Qc2 {[%emt 0:00:01]} Re8 {[%emt 0:00:06]} 10. O-O {[%emt 0:00:04]} Nf8 {[%emt 0:00:01]} 11. Rab1 {[%emt 0:00:03]} Ng6 {[%emt 0:00:13]} 12. b4 {[%emt 0:00:05]} a6 {[%emt 0:00:01]} 13. a4 {[%emt 0:00:00]} Bd6 {[%emt 0:00:03]} 14. b5 {[%emt 0:00:10]} axb5 {[%emt 0:00:01]} 15. axb5 {[%emt 0:00:02]} h6 {[%emt 0:00:02]} 16. Bxf6 {[%emt 0:00:30]} Qxf6 {[%emt 0:00:02]} 17. bxc6 {[%emt 0:00:04]} bxc6 {[%emt 0:00:01]} 18. Ne2 {[%emt 0:00:41]} Bg4 {[%emt 0:00:11]} 19. Nd2 {[%emt 0:00:12]} Nh4 {[%emt 0:01:23]} 20. Rfc1 {[%emt 0:00:27]} Bxh2+ {[%emt 0:03:42]} 21. Kxh2 {[%emt 0:00:02]} Qxf2 {[%emt 0:00:02]} 22. Nf4 {[%emt 0:00:11]} Rxe3 {[%emt 0:00:23]} 23. Rf1 {[%emt 0:01:28]} Rh3+ {[%emt 0:00:31]} 0-1

[Event "Skalica Rapid 2020"]
[Site "Skalica"]
[Date "2020.08.29"]
[Round "4.16"]
[White "Vadila Ondrej"]
[Black "Havelka, Ondrej"]
[Result "0-1"]
[ECO "A47"]
[WhiteElo "2057"]
[BlackElo "1997"]
[Annotator "ChessBase"]
[PlyCount "144"]
[EventDate "2020.08.29"]
[EventType "swiss"]
[EventCountry "SVK"]
[SourceTitle "playchess.com"]
[Source "ChessBase"]
[SourceQuality "1"]
[TimeControl "600+5"]

1. d4 {[%emt 0:00:00]} e6 {[%emt 0:00:00]} 2. Bf4 {[%emt 0:00:01]} Nf6 {[%emt 0:00:00]} 3. e3 {[%emt 0:00:02]} c5 {[%emt 0:00:03]} 4. Nd2 {[%emt 0:00:06]} b6 {[%emt 0:00:14]} 5. Ngf3 {[%emt 0:00:03]} Bb7 {[%emt 0:00:01]} 6. Nc4 {[%emt 0:00:01]} d5 {[%emt 0:00:04]} 7. Nce5 {[%emt 0:00:02]} Nfd7 {[%emt 0:00:15]} 8. Bb5 {[%emt 0:00:04]} a6 {[%emt 0:00:05]} 9. Ng5 {[%emt 0:00:07]} axb5 {[%emt 0:00:29]} 10. Nexf7 {[%emt 0:00:02]} Qf6 {[%emt 0:00:12]} 11. Nxh8 {[%emt 0:00:23]} cxd4 {[%emt 0:00:29]} 12. Nxh7 {[%emt 0:00:05]} Qh4 {[%emt 0:01:00]} 13. Qd3 {[%emt 0:00:45]} Qh5 {[%emt 0:01:37]} 14. Ng5 {[%emt 0:02:28]} e5 {[%emt 0:02:23]} 15. g4 {[%emt 0:00:46]} Qh6 {[%emt 0:00:53]} 16. Ngf7 {[%emt 0:01:04]} Qe6 {[%emt 0:00:15]} 17. Bg3 {[%emt 0:01:28]} Bb4+ {[%emt 0:00:01]} 18. c3 {[%emt 0:00:13]} dxc3 {[%emt 0:00:22]} 19. bxc3 {[%emt 0:00:15]} e4 {[%emt 0:00:14]} 20. Qd4 {[%emt 0:00:24]} Nc6 {[%emt 0:00:03]} 21. Qxg7 {[%emt 0:00:12]} Bf8 {[%emt 0:00:06]} 22. Qg8 {[%emt 0:00:25]} Nce5 {[%emt 0:00:26]} 23. Bxe5 {[%emt 0:01:12]} Nxe5 {[%emt 0:00:01]} 24. g5 {[%emt 0:00:38]} Nxf7 {[%emt 0:00:37]} 25. Qh7 {[%emt 0:00:32]} Nd6 {[%emt 0:01:50]} 26. Qh5+ {[%emt 0:00:26]} Kd7 {[%emt 0:00:01]} 27. O-O {[%emt 0:00:13]} Bg7 {[%emt 0:00:02]} 28. Ng6 {[%emt 0:00:02]} Nf5 {[%emt 0:00:24]} 29. Nf4 {[%emt 0:00:06]} Qe7 {[%emt 0:00:07]} 30. Qg4 {[%emt 0:00:06]} Rf8 {[%emt 0:00:02]} 31. Rab1 {[%emt 0:00:05]} Bc6 {[%emt 0:00:03]} 32. Rfd1 {[%emt 0:00:02]} Kd6 {[%emt 0:00:03]} 33. a4 {[%emt 0:00:04]} Bxc3 {[%emt 0:00:10]} 34. axb5 {[%emt 0:00:03]} Bb7 {[%emt 0:00:03]} 35. Ng6 {[%emt 0:00:03]} Qf7 {[%emt 0:00:10]} 36. Qf4+ {[%emt 0:00:08]} Ke6 {[%emt 0:00:03]} 37. Nxf8+ {[%emt 0:00:03]} Qxf8 {[%emt 0:00:01]} 38. Qc7 {[%emt 0:00:14]} Nh4 {[%emt 0:00:14]} 39. Qg3 {[%emt 0:00:12]} Nf3+ {[%emt 0:00:02]} 40. Kf1 {[%emt 0:00:01]} Be5 {[%emt 0:00:01]} 41. Qg4+ {[%emt 0:00:05]} Kd6 {[%emt 0:00:03]} 42. Ke2 {[%emt 0:00:00]} Bc8 {[%emt 0:00:11]} 43. Qxe4 {[%emt 0:00:02]} Be6 {[%emt 0:00:08]} 44. Rbc1 {[%emt 0:00:01]} Nxg5 {[%emt 0:00:02]} 45. Rc6+ {[%emt 0:00:02]} Kd7 {[%emt 0:00:01]} 46. Qxe5 {[%emt 0:00:06]} Qf3+ {[%emt 0:00:00]} 47. Ke1 {[%emt 0:00:07]} Qh1+ {[%emt 0:00:02]} 48. Kd2 {[%emt 0:00:01]} Nf3+ {[%emt 0:00:01]} 49. Kc2 {[%emt 0:00:07]} Qxd1+ {[%emt 0:00:05]} 50. Kxd1 {[%emt 0:00:03]} Nxe5 {[%emt 0:00:02]} 51. Rxb6 {[%emt 0:00:01]} Bg4+ {[%emt 0:00:06]} 52. Kc2 {[%emt 0:00:10]} Bf5+ {[%emt 0:00:15]} 53. Kc3 {[%emt 0:00:05]} Be4 {[%emt 0:00:09]} 54. h3 {[%emt 0:00:07]} Kc7 {[%emt 0:00:05]} 55. Re6 {[%emt 0:00:04]} Nf3 {[%emt 0:00:02]} 56. Rh6 {[%emt 0:00:06]} Kb7 {[%emt 0:00:06]} 57. Kb4 {[%emt 0:00:02]} Ne1 {[%emt 0:00:06]} 58. f4 {[%emt 0:00:13]} Ng2 {[%emt 0:00:04]} 59. Kc5 {[%emt 0:00:05]} Nxe3 {[%emt 0:00:02]} 60. Re6 {[%emt 0:00:05]} Nf5 {[%emt 0:00:07]} 61. Rf6 {[%emt 0:00:09]} d4 {[%emt 0:00:12]} 62. Rf7+ {[%emt 0:00:04]} Kc8 {[%emt 0:00:02]} 63. Rf8+ {[%emt 0:00:13]} Kd7 {[%emt 0:00:02]} 64. b6 {[%emt 0:00:04]} d3 {[%emt 0:00:02]} 65. Rf7+ {[%emt 0:00:05]} Kc8 {[%emt 0:00:01]} 66. Rf8+ {[%emt 0:00:01]} Kd7 {[%emt 0:00:07]} 67. Rf7+ {[%emt 0:00:03]} Ne7 {[%emt 0:00:04]} 68. Kd4 {[%emt 0:00:12]} d2 {[%emt 0:00:01]} 69. Kxe4 {[%emt 0:00:01]} d1=Q {[%emt 0:00:02]} 70. Rf6 {[%emt 0:00:09]} Qd5+ {[%emt 0:00:02]} 71. Ke3 {[%emt 0:00:01]} Nf5+ {[%emt 0:00:10]} 72. Ke2 {[%emt 0:00:01]} Qc4+ {[%emt 0:00:01]} 0-1

[Event "Skalica Rapid 2020"]
[Site "Skalica"]
[Date "2020.08.29"]
[Round "4.17"]
[White "Gzib, David"]
[Black "Striskova Lucia"]
[Result "1/2-1/2"]
[ECO "C33"]
[WhiteElo "1770"]
[BlackElo "1484"]
[Annotator "NA"]
[PlyCount "98"]
[EventDate "2020.08.29"]
[EventType "swiss"]
[EventCountry "SVK"]
[SourceTitle "playchess.com"]
[Source "ChessBase"]
[SourceQuality "1"]
[TimeControl "600+5"]

1. e4 {[%emt 0:00:00]} e5 {[%emt 0:00:00]} 2. f4 {[%emt 0:00:09]} exf4 {[%emt 0:00:00]} 3. Nf3 {[%emt 0:00:01]} Nc6 {[%emt 0:00:04]} 4. Bc4 {[%emt 0:00:07]} d6 {[%emt 0:00:24]} 5. O-O {[%emt 0:00:21]} Nf6 {[%emt 0:00:03]} 6. Nc3 {[%emt 0:00:05]} Be7 {[%emt 0:00:06]} 7. d4 {[%emt 0:00:02]} O-O {[%emt 0:00:09]} 8. Bxf4 {[%emt 0:00:04]} Bg4 {[%emt 0:00:26]} 9. Be3 {[%emt 0:01:33]} a6 {[%emt 0:00:31]} 10. h3 {[%emt 0:00:16]} Bh5 {[%emt 0:00:03]} 11. a3 {[%emt 0:01:19]} Re8 {[%emt 0:00:18]} 12. Qd3 {[%emt 0:00:43]} h6 {[%emt 0:00:39]} 13. e5 {[%emt 0:00:56]} dxe5 {[%emt 0:01:01]} 14. Nxe5 {[%emt 0:00:19]} Nxe5 {[%emt 0:00:26]} 15. dxe5 {[%emt 0:00:01]} Qxd3 {[%emt 0:00:23]} 16. cxd3 {[%emt 0:00:10]} Nd7 {[%emt 0:00:13]} 17. d4 {[%emt 0:00:26]} c5 {[%emt 0:00:28]} 18. e6 {[%emt 0:00:21]} fxe6 {[%emt 0:00:33]} 19. Bxe6+ {[%emt 0:00:06]} Kh8 {[%emt 0:00:01]} 20. Bxd7 {[%emt 0:01:04]} Red8 {[%emt 0:00:01]} 21. dxc5 {[%emt 0:01:29]} Rxd7 {[%emt 0:00:07]} 22. g4 {[%emt 0:00:03]} Bg6 {[%emt 0:00:08]} 23. Rad1 {[%emt 0:00:02]} Rad8 {[%emt 0:01:04]} 24. Rxd7 {[%emt 0:00:03]} Rxd7 {[%emt 0:00:01]} 25. Rd1 {[%emt 0:00:02]} Rxd1+ {[%emt 0:00:30]} 26. Nxd1 {[%emt 0:00:01]} Bf6 {[%emt 0:00:09]} 27. b4 {[%emt 0:00:13]} Bc2 {[%emt 0:00:05]} 28. Nf2 {[%emt 0:00:02]} Bb2 {[%emt 0:00:05]} 29. Bd2 {[%emt 0:00:22]} Bxa3 {[%emt 0:00:10]} 30. Bc3 {[%emt 0:00:01]} a5 {[%emt 0:00:46]} 31. bxa5 {[%emt 0:00:02]} Bxc5 {[%emt 0:00:01]} 32. Kg2 {[%emt 0:00:13]} Kg8 {[%emt 0:01:13]} 33. Kf3 {[%emt 0:00:03]} Bxf2 {[%emt 0:00:06]} 34. Kxf2 {[%emt 0:00:01]} Be4 {[%emt 0:00:01]} 35. Ke3 {[%emt 0:00:05]} Bg2 {[%emt 0:00:03]} 36. h4 {[%emt 0:00:01]} g6 {[%emt 0:00:05]} 37. Kf4 {[%emt 0:00:03]} Kf7 {[%emt 0:00:02]} 38. Bd4 {[%emt 0:00:14]} h5 {[%emt 0:00:30]} 39. g5 {[%emt 0:00:02]} Ke6 {[%emt 0:00:04]} 40. Bf2 {[%emt 0:00:04]} Bc6 {[%emt 0:00:03]} 41. Ke3 {[%emt 0:00:02]} Kf5 {[%emt 0:00:04]} 42. Kd4 {[%emt 0:00:02]} Kg4 {[%emt 0:00:15]} 43. Kc5 {[%emt 0:00:02]} Bg2 {[%emt 0:00:02]} 44. Kb6 {[%emt 0:00:06]} Be4 {[%emt 0:00:05]} 45. Kc7 {[%emt 0:00:04]} Kf3 {[%emt 0:00:04]} 46. Be1 {[%emt 0:00:02]} Ke2 {[%emt 0:00:01]} 47. Bb4 {[%emt 0:00:08]} Kf3 {[%emt 0:00:02]} 48. Kd6 {[%emt 0:00:05]} Kg4 {[%emt 0:00:05]} 49. Be1 {[%emt 0:00:02]} Kf5 {[%emt 0:00:01]} 1/2-1/2

[Event "Skalica Rapid 2020"]
[Site "Skalica"]
[Date "2020.08.29"]
[Round "4.18"]
[White "Cedzo Adam"]
[Black "Takacs Laszlo"]
[Result "0-1"]
[ECO "B52"]
[WhiteElo "1585"]
[BlackElo "2128"]
[Annotator "ChessBase"]
[PlyCount "88"]
[EventDate "2020.08.29"]
[EventType "swiss"]
[EventCountry "SVK"]
[SourceTitle "playchess.com"]
[Source "ChessBase"]
[SourceQuality "1"]
[TimeControl "600+5"]

1. e4 {[%emt 0:00:00]} c5 {[%emt 0:00:00]} 2. Nf3 {[%emt 0:00:00]} d6 {[%emt 0:00:00]} 3. Bb5+ {[%emt 0:00:00]} Bd7 {[%emt 0:00:00]} 4. Qe2 {[%emt 0:00:00]} Nf6 {[%emt 0:00:08]} 5. O-O {[%emt 0:00:23]} e6 {[%emt 0:00:06]} 6. c3 {[%emt 0:00:02]} Be7 {[%emt 0:00:09]} 7. d4 {[%emt 0:00:08]} cxd4 {[%emt 0:00:06]} 8. cxd4 {[%emt 0:00:01]} d5 {[%emt 0:00:12]} 9. e5 {[%emt 0:00:03]} Ne4 {[%emt 0:00:02]} 10. Nbd2 {[%emt 0:00:14]} Nxd2 {[%emt 0:00:03]} 11. Bxd2 {[%emt 0:00:02]} O-O {[%emt 0:00:09]} 12. Bd3 {[%emt 0:00:28]} Nc6 {[%emt 0:00:05]} 13. h3 {[%emt 0:00:41]} Qb6 {[%emt 0:00:28]} 14. Bg5 {[%emt 0:00:48]} Nxd4 {[%emt 0:01:12]} 15. Nxd4 {[%emt 0:00:19]} Bxg5 {[%emt 0:00:07]} 16. Qh5 {[%emt 0:00:10]} h6 {[%emt 0:00:13]} 17. Nf3 {[%emt 0:00:00]} Be7 {[%emt 0:02:59]} 18. Nh2 {[%emt 0:01:16]} Bb5 {[%emt 0:00:07]} 19. Rfd1 {[%emt 0:00:53]} Bxd3 {[%emt 0:01:59]} 20. Rxd3 {[%emt 0:00:05]} Qxb2 {[%emt 0:00:03]} 21. Rad1 {[%emt 0:00:01]} f5 {[%emt 0:00:05]} 22. exf6 {[%emt 0:00:34]} Qxf6 {[%emt 0:00:29]} 23. Qe2 {[%emt 0:00:35]} Bc5 {[%emt 0:00:32]} 24. Ng4 {[%emt 0:00:02]} Qf5 {[%emt 0:00:50]} 25. Rg3 {[%emt 0:00:17]} Kh8 {[%emt 0:00:15]} 26. Rf3 {[%emt 0:00:41]} Qe4 {[%emt 0:00:27]} 27. Rxf8+ {[%emt 0:00:01]} Rxf8 {[%emt 0:00:01]} 28. Qd2 {[%emt 0:00:50]} h5 {[%emt 0:00:12]} 29. Ne3 {[%emt 0:01:35]} b6 {[%emt 0:00:45]} 30. Qe2 {[%emt 0:00:24]} g6 {[%emt 0:00:02]} 31. Qb2+ {[%emt 0:01:17]} Kh7 {[%emt 0:00:03]} 32. Qb3 {[%emt 0:00:17]} a5 {[%emt 0:00:06]} 33. Rc1 {[%emt 0:00:20]} a4 {[%emt 0:00:07]} 34. Qc3 {[%emt 0:00:17]} d4 {[%emt 0:00:25]} 35. Qc2 {[%emt 0:00:05]} Qf4 {[%emt 0:00:19]} 36. Nd1 {[%emt 0:00:01]} e5 {[%emt 0:00:04]} 37. Qe2 {[%emt 0:00:08]} e4 {[%emt 0:00:03]} 38. Rc4 {[%emt 0:00:06]} Rf7 {[%emt 0:00:03]} 39. g3 {[%emt 0:00:04]} Qf3 {[%emt 0:00:01]} 40. Qxf3 {[%emt 0:00:04]} Rxf3 {[%emt 0:00:03]} 41. Kg2 {[%emt 0:00:07]} Ra3 {[%emt 0:00:04]} 42. Rc2 {[%emt 0:00:05]} d3 {[%emt 0:00:13]} 43. Rd2 {[%emt 0:00:06]} Bd4 {[%emt 0:00:02]} 44. f3 {[%emt 0:00:00]} e3 {[%emt 0:00:03]} 0-1

[Event "Skalica Rapid 2020"]
[Site "Skalica"]
[Date "2020.08.29"]
[Round "5.1"]
[White "Basso, Pier Luigi"]
[Black "Yankelevich, Lev"]
[Result "1-0"]
[ECO "E80"]
[WhiteElo "2443"]
[BlackElo "2388"]
[Annotator "ChessBase"]
[PlyCount "85"]
[EventDate "2020.08.29"]
[EventType "swiss"]
[EventCountry "SVK"]
[SourceTitle "playchess.com"]
[Source "ChessBase"]
[SourceQuality "1"]
[TimeControl "600+5"]

1. d4 {[%emt 0:00:00]} Nf6 {[%emt 0:00:46]} 2. c4 {[%emt 0:00:00]} g6 {[%emt 0:00:05]} 3. f3 {[%emt 0:00:01]} c5 {[%emt 0:00:19]} 4. d5 {[%emt 0:00:02]} d6 {[%emt 0:00:15]} 5. Nc3 {[%emt 0:00:03]} Bg7 {[%emt 0:00:10]} 6. e4 {[%emt 0:00:01]} e6 {[%emt 0:00:03]} 7. Nge2 {[%emt 0:00:02]} exd5 {[%emt 0:00:03]} 8. cxd5 {[%emt 0:00:01]} a6 {[%emt 0:00:07]} 9. a4 {[%emt 0:00:02]} Nbd7 {[%emt 0:00:02]} 10. Ng3 {[%emt 0:00:02]} h5 {[%emt 0:00:01]} 11. Be2 {[%emt 0:00:02]} Nh7 {[%emt 0:00:18]} 12. Be3 {[%emt 0:00:20]} h4 {[%emt 0:01:01]} 13. Nf1 {[%emt 0:00:02]} f5 {[%emt 0:00:01]} 14. exf5 {[%emt 0:00:16]} gxf5 {[%emt 0:00:02]} 15. Qd2 {[%emt 0:00:28]} Qf6 {[%emt 0:00:02]} 16. Bf4 {[%emt 0:00:08]} Ne5 {[%emt 0:00:07]} 17. Ne3 {[%emt 0:00:32]} O-O {[%emt 0:01:58]} 18. Bxe5 {[%emt 0:00:03]} Qxe5 {[%emt 0:00:56]} 19. Nc4 {[%emt 0:00:01]} Qf6 {[%emt 0:00:02]} 20. Nb6 {[%emt 0:00:00]} Rb8 {[%emt 0:00:04]} 21. O-O-O {[%emt 0:00:03]} Qd4 {[%emt 0:01:50]} 22. Bc4 {[%emt 0:00:22]} Qxd2+ {[%emt 0:00:08]} 23. Kxd2 {[%emt 0:00:01]} Bh6+ {[%emt 0:00:34]} 24. Kc2 {[%emt 0:00:06]} f4 {[%emt 0:00:19]} 25. Rhe1 {[%emt 0:00:09]} Bf5+ {[%emt 0:00:02]} 26. Bd3 {[%emt 0:00:01]} Bxd3+ {[%emt 0:00:13]} 27. Kxd3 {[%emt 0:00:02]} Rfe8 {[%emt 0:00:15]} 28. Ne4 {[%emt 0:00:28]} Rbd8 {[%emt 0:00:11]} 29. b3 {[%emt 0:00:20]} Kf7 {[%emt 0:00:19]} 30. Nc4 {[%emt 0:00:10]} Bf8 {[%emt 0:00:05]} 31. a5 {[%emt 0:00:03]} Kg6 {[%emt 0:00:37]} 32. g3 {[%emt 0:00:20]} hxg3 {[%emt 0:00:06]} 33. hxg3 {[%emt 0:00:01]} fxg3 {[%emt 0:00:02]} 34. Rg1 {[%emt 0:00:03]} Be7 {[%emt 0:00:12]} 35. Rxg3+ {[%emt 0:00:04]} Kf7 {[%emt 0:00:01]} 36. Rh1 {[%emt 0:00:03]} Rh8 {[%emt 0:01:01]} 37. Rgh3 {[%emt 0:00:02]} Kg7 {[%emt 0:00:01]} 38. f4 {[%emt 0:00:17]} Rdf8 {[%emt 0:00:12]} 39. Rg1+ {[%emt 0:00:08]} Kf7 {[%emt 0:00:01]} 40. Rh6 {[%emt 0:00:25]} Nf6 {[%emt 0:00:26]} 41. Ncxd6+ {[%emt 0:00:05]} Bxd6 {[%emt 0:00:02]} 42. Rxf6+ {[%emt 0:00:02]} Ke7 {[%emt 0:00:10]} 43. Rg7+ {[%emt 0:00:03]} 1-0

[Event "Skalica Rapid 2020"]
[Site "Skalica"]
[Date "2020.08.29"]
[Round "5.2"]
[White "Pechac, Jergus"]
[Black "Pacher Milan"]
[Result "1-0"]
[ECO "D02"]
[WhiteElo "2430"]
[BlackElo "2452"]
[Annotator "ChessBase"]
[PlyCount "51"]
[EventDate "2020.08.29"]
[EventType "swiss"]
[EventCountry "SVK"]
[SourceTitle "playchess.com"]
[Source "ChessBase"]
[SourceQuality "1"]
[TimeControl "600+5"]

1. d4 {[%emt 0:00:00]} d5 {[%emt 0:00:00]} 2. Nf3 {[%emt 0:00:00]} Nf6 {[%emt 0:00:00]} 3. Bf4 {[%emt 0:00:05]} e6 {[%emt 0:00:00]} 4. e3 {[%emt 0:00:00]} Bd6 {[%emt 0:00:01]} 5. Nbd2 {[%emt 0:00:00]} O-O {[%emt 0:00:04]} 6. Ne5 {[%emt 0:00:01]} b6 {[%emt 0:00:16]} 7. h4 {[%emt 0:00:02]} c5 {[%emt 0:00:06]} 8. c3 {[%emt 0:00:08]} Qe7 {[%emt 0:00:14]} 9. h5 {[%emt 0:00:07]} Nfd7 {[%emt 0:00:11]} 10. h6 {[%emt 0:00:27]} g6 {[%emt 0:00:03]} 11. Qg4 {[%emt 0:00:05]} Kh8 {[%emt 0:00:54]} 12. Qg3 {[%emt 0:00:17]} Bxe5 {[%emt 0:00:43]} 13. dxe5 {[%emt 0:00:02]} f6 {[%emt 0:00:12]} 14. exf6 {[%emt 0:00:13]} Qxf6 {[%emt 0:00:06]} 15. Nf3 {[%emt 0:00:24]} Kg8 {[%emt 0:00:39]} 16. O-O-O {[%emt 0:01:09]} Nc6 {[%emt 0:00:03]} 17. Bb5 {[%emt 0:00:05]} Bb7 {[%emt 0:00:06]} 18. Bg5 {[%emt 0:00:47]} Qf7 {[%emt 0:00:11]} 19. Rh4 {[%emt 0:00:34]} e5 {[%emt 0:01:03]} 20. Rxd5 {[%emt 0:00:31]} Rae8 {[%emt 0:00:46]} 21. Rd6 {[%emt 0:00:13]} e4 {[%emt 0:00:11]} 22. Rf4 {[%emt 0:00:29]} Qxa2 {[%emt 0:00:25]} 23. Rxd7 {[%emt 0:00:02]} Na5 {[%emt 0:00:48]} 24. Nd2 {[%emt 0:01:30]} Ba6 {[%emt 0:00:30]} 25. Rxf8+ {[%emt 0:00:23]} Rxf8 {[%emt 0:00:03]} 26. Qe5 {[%emt 0:00:04]} 1-0

[Event "Skalica Rapid 2020"]
[Site "Skalica"]
[Date "2020.08.29"]
[Round "5.2"]
[White "Sobek, Michal"]
[Black "Ihnat, Marek"]
[Result "1-0"]
[ECO "B36"]
[WhiteElo "2113"]
[BlackElo "1738"]
[Annotator "ChessBase"]
[PlyCount "49"]
[EventDate "2020.08.29"]
[EventType "swiss"]
[EventCountry "SVK"]
[SourceTitle "playchess.com"]
[Source "ChessBase"]
[SourceQuality "1"]
[TimeControl "600+5"]

1. e4 {[%emt 0:00:00]} c5 {[%emt 0:00:00]} 2. Nf3 {[%emt 0:00:00]} Nc6 {[%emt 0:00:00]} 3. d4 {[%emt 0:00:00]} cxd4 {[%emt 0:00:02]} 4. Nxd4 {[%emt 0:00:01]} g6 {[%emt 0:00:14]} 5. c4 {[%emt 0:00:03]} Nf6 {[%emt 0:00:02]} 6. Nc3 {[%emt 0:00:02]} d6 {[%emt 0:00:01]} 7. Be2 {[%emt 0:00:06]} Nxd4 {[%emt 0:00:02]} 8. Qxd4 {[%emt 0:00:04]} Bg7 {[%emt 0:00:01]} 9. Be3 {[%emt 0:00:16]} O-O {[%emt 0:00:03]} 10. Qd2 {[%emt 0:00:01]} a5 {[%emt 0:00:01]} 11. f3 {[%emt 0:00:22]} a4 {[%emt 0:00:01]} 12. O-O {[%emt 0:00:08]} Qa5 {[%emt 0:00:01]} 13. Rab1 {[%emt 0:00:17]} Be6 {[%emt 0:00:14]} 14. b3 {[%emt 0:00:17]} axb3 {[%emt 0:02:23]} 15. axb3 {[%emt 0:00:04]} Rfc8 {[%emt 0:00:07]} 16. f4 {[%emt 0:01:24]} Ng4 {[%emt 0:00:39]} 17. Bd4 {[%emt 0:00:42]} Bxd4+ {[%emt 0:00:32]} 18. Qxd4 {[%emt 0:00:26]} Qc5 {[%emt 0:01:15]} 19. Qxc5 {[%emt 0:00:04]} Rxc5 {[%emt 0:00:00]} 20. f5 {[%emt 0:00:18]} gxf5 {[%emt 0:00:01]} 21. exf5 {[%emt 0:00:01]} Nxh2 {[%emt 0:01:39]} 22. Kxh2 {[%emt 0:00:26]} Bxf5 {[%emt 0:00:06]} 23. Rb2 {[%emt 0:00:23]} Bg6 {[%emt 0:00:24]} 24. Nd5 {[%emt 0:00:15]} e6 {[%emt 0:00:19]} 25. b4 {[%emt 0:00:14]} 1-0